{"text_format":"1","workbook":"xlsx","n_sheets":2,"sheets":["I квартал","Лист1"],"not_rendered":{"charts":0,"images":0,"macros":1,"external_links":0,"defined_names":2,"comments":0,"pivot_tables":0},"unopened":[],"bounds":{"document_bytes":16777216,"sheet_cells":100000,"rows_first":2000,"rows_last":500,"rows_between":2000,"halvings":0,"cell_chars":16384,"cell_head_chars":4096},"cells_cut":0,"cells_raw":0,"read":"whole","date_system":"1900"}

{"sheet":"I квартал","index":0,"n_rows":77,"n_cols":100,"rows_kept":77,"cut":false,"hidden":false,"merged":[[0,0,3,0],[4,0,4,91],[24,0,24,91],[43,0,43,91],[76,0,76,91],[1,91,3,91],[1,1,1,31],[1,32,1,59],[0,43,0,51],[1,60,1,90],[33,0,33,91]]}
["ЗАДАЧИ",{"$f":" YEAR(TODAY())","v":2019},null,null,null,null,null,null,null,null,null,null,null,null,null,null,null,null,null,null,null,null,null,null,null,null,null,null,null,null,null,null,null,null,null,null,null,null,null,null,null,null,null,2019]
[null,"Январь",null,null,null,null,null,null,null,null,null,null,null,null,null,null,null,null,null,null,null,null,null,null,null,null,null,null,null,null,null,null,"Февраль",null,null,null,null,null,null,null,null,null,null,null,null,null,null,null,null,null,null,null,null,null,null,null,null,null,null,null,"Март",null,null,null,null,null,null,null,null,null,null,null,null,null,null,null,null,null,null,null,null,null,null,null,null,null,null,null,null,null,null,"Ответсвенные"]
[null,{"$f":"B4","v":"2019-01-01"},{"$f":"C4","v":"2019-01-02"},"2019-01-03","2019-01-04","2019-01-05","2019-01-06","2019-01-07","2019-01-08","2019-01-09","2019-01-10","2019-01-11","2019-01-12","2019-01-13","2019-01-14","2019-01-15","2019-01-16","2019-01-17","2019-01-18","2019-01-19","2019-01-20","2019-01-21","2019-01-22","2019-01-23","2019-01-24","2019-01-25","2019-01-26","2019-01-27","2019-01-28","2019-01-29","2019-01-30","2019-01-31",{"$f":"AG4","v":"2019-02-01"},{"$f":"AH4","v":"2019-02-02"},{"$f":"AI4","v":"2019-02-03"},{"$f":"AJ4","v":"2019-02-04"},{"$f":"AK4","v":"2019-02-05"},{"$f":"AL4","v":"2019-02-06"},{"$f":"AM4","v":"2019-02-07"},{"$f":"AN4","v":"2019-02-08"},{"$f":"AO4","v":"2019-02-09"},{"$f":"AP4","v":"2019-02-10"},{"$f":"AQ4","v":"2019-02-11"},{"$f":"AR4","v":"2019-02-12"},{"$f":"AS4","v":"2019-02-13"},{"$f":"AT4","v":"2019-02-14"},{"$f":"AU4","v":"2019-02-15"},{"$f":"AV4","v":"2019-02-16"},{"$f":"AW4","v":"2019-02-17"},{"$f":"AX4","v":"2019-02-18"},{"$f":"AY4","v":"2019-02-19"},{"$f":"AZ4","v":"2019-02-20"},{"$f":"BA4","v":"2019-02-21"},{"$f":"BB4","v":"2019-02-22"},{"$f":"BC4","v":"2019-02-23"},{"$f":"BD4","v":"2019-02-24"},{"$f":"BE4","v":"2019-02-25"},{"$f":"BF4","v":"2019-02-26"},{"$f":"BG4","v":"2019-02-27"},{"$f":"BH4","v":"2019-02-28"},{"$f":"BI4","v":"2019-03-01"},{"$f":"BJ4","v":"2019-03-02"},{"$f":"BK4","v":"2019-03-03"},{"$f":"BL4","v":"2019-03-04"},{"$f":"BM4","v":"2019-03-05"},{"$f":"BN4","v":"2019-03-06"},{"$f":"BO4","v":"2019-03-07"},{"$f":"BP4","v":"2019-03-08"},{"$f":"BQ4","v":"2019-03-09"},{"$f":"BR4","v":"2019-03-10"},{"$f":"BS4","v":"2019-03-11"},{"$f":"BT4","v":"2019-03-12"},{"$f":"BU4","v":"2019-03-13"},{"$f":"BV4","v":"2019-03-14"},{"$f":"BW4","v":"2019-03-15"},{"$f":"BX4","v":"2019-03-16"},{"$f":"BY4","v":"2019-03-17"},{"$f":"BZ4","v":"2019-03-18"},{"$f":"CA4","v":"2019-03-19"},{"$f":"CB4","v":"2019-03-20"},{"$f":"CC4","v":"2019-03-21"},{"$f":"CD4","v":"2019-03-22"},{"$f":"CE4","v":"2019-03-23"},{"$f":"CF4","v":"2019-03-24"},{"$f":"CG4","v":"2019-03-25"},{"$f":"CH4","v":"2019-03-26"},{"$f":"CI4","v":"2019-03-27"},{"$f":"CJ4","v":"2019-03-28"},{"$f":"CK4","v":"2019-03-29"},{"$f":"CL4","v":"2019-03-30"},{"$f":"CM4","v":"2019-03-31"}]
[null,{"$f":"DATE($AR$1,VLOOKUP($B$2,Лист1!A:C,2,FALSE),1)","v":"2019-01-01"},{"$f":"B4+1","v":"2019-01-02"},{"$f":"C4+1","v":"2019-01-03"},"2019-01-04","2019-01-05","2019-01-06","2019-01-07","2019-01-08","2019-01-09","2019-01-10","2019-01-11","2019-01-12","2019-01-13","2019-01-14","2019-01-15","2019-01-16","2019-01-17","2019-01-18","2019-01-19","2019-01-20","2019-01-21","2019-01-22","2019-01-23","2019-01-24","2019-01-25","2019-01-26","2019-01-27","2019-01-28","2019-01-29","2019-01-30","2019-01-31",{"$f":"DATE($AR$1,VLOOKUP($AG$2,Лист1!A:C,2,FALSE),1)","v":"2019-02-01"},{"$f":"AG4+1","v":"2019-02-02"},{"$f":"AH4+1","v":"2019-02-03"},"2019-02-04","2019-02-05","2019-02-06","2019-02-07","2019-02-08","2019-02-09","2019-02-10","2019-02-11","2019-02-12","2019-02-13","2019-02-14","2019-02-15","2019-02-16","2019-02-17","2019-02-18","2019-02-19","2019-02-20","2019-02-21","2019-02-22","2019-02-23","2019-02-24","2019-02-25","2019-02-26","2019-02-27","2019-02-28",{"$f":"DATE($AR$1,VLOOKUP($BI$2,Лист1!A:C,2,FALSE),1)","v":"2019-03-01"},{"$f":"BI4+1","v":"2019-03-02"},{"$f":"BJ4+1","v":"2019-03-03"},"2019-03-04","2019-03-05","2019-03-06","2019-03-07","2019-03-08","2019-03-09","2019-03-10","2019-03-11","2019-03-12","2019-03-13","2019-03-14","2019-03-15","2019-03-16","2019-03-17","2019-03-18","2019-03-19","2019-03-20","2019-03-21","2019-03-22","2019-03-23","2019-03-24","2019-03-25","2019-03-26","2019-03-27","2019-03-28","2019-03-29","2019-03-30",{"$f":"CL4+1","v":"2019-03-31"},null,null,null,null,"Получатель","Дата","минуты","минуты","важность"]
["ФОРМИРОВАНИЕ НОВОГО ФИРМЕННОГО СТИЛЯ И РЕКЛАМНОЙ КОМПАНИИ",null,null,null,null,null,null,null,null,null,null,null,null,null,null,null,null,null,null,null,null,null,null,null,null,null,null,null,null,null,null,null,null,null,null,null,null,null,null,null,null,null,null,null,null,null,null,null,null,null,null,null,null,null,null,null,null,null,null,null,null,null,null,null,null,null,null,null,null,null,null,null,null,null,null,null,null,null,null,null,null,null,null,null,null,null,null,null,null,null,null,null,null,null,null,null,null,null,null,"Низкая"]
["Формирование общего каталога продукции",null,null,null,null,null,null,null,null,null,null,null,null,null,null,null,null,null,null,null,null,null,null,null,null,null,null,null,{"$f":"AC4","v":"2019-01-28"},null,null,null,null,null,null,null,null,null,null,null,null,null,null,null,null,null,null,null,null,null,null,null,null,null,null,null,null,null,null,null,null,null,null,null,null,null,null,null,null,null,null,null,null,null,null,null,null,null,null,null,null,null,null,null,null,null,null,null,null,null,null,"КОМАРОВ|УКОЛОВА",null,null,null,{"$f":"VLOOKUP(CN6,Лист1!$E$2:$F$20,2,FALSE)","v":"Komarov_IA@agat.local; Ukolova_OY@agat.local"},{"$f":"INDEX(B6:CM6,1,MATCH(1,INDEX(1-ISBLANK(B6:CM6),1,0),0))","v":"2019-01-28"},9,25,"Обычная"]
["Дизайн общего каталога",null,null,null,null,null,null,null,null,null,null,null,null,null,null,null,null,null,{"$f":"S4","v":"2019-01-18"},null,null,null,null,null,null,null,null,null,null,null,null,null,null,null,null,null,null,null,null,null,null,null,null,null,null,null,null,null,null,null,null,null,null,null,null,null,null,null,null,null,null,null,null,null,null,null,null,null,null,null,null,null,null,null,null,null,null,null,null,null,null,null,null,null,null,null,null,null,null,null,null,"УКОЛОВА",null,null,null,{"$f":"VLOOKUP(CN7,Лист1!$E$2:$F$20,2,FALSE)","v":"Ukolova_OY@agat.local"},{"$f":"INDEX(B7:CM7,1,MATCH(1,INDEX(1-ISBLANK(B7:CM7),1,0),0))","v":"2019-01-18"},9,25,"Обычная"]
["Утверждение/Верстка каталога",null,null,null,null,null,null,null,null,null,null,null,null,null,null,null,null,null,null,null,null,null,null,null,null,null,null,null,{"$f":"AC4","v":"2019-01-28"},null,null,null,null,null,null,null,null,null,null,null,null,null,null,null,null,null,null,null,null,null,null,null,null,null,null,null,null,null,null,null,null,null,null,null,null,null,null,null,null,null,null,null,null,null,null,null,null,null,null,null,null,null,null,null,null,null,null,null,null,null,null,"КОМАРОВ",null,null,null,{"$f":"VLOOKUP(CN8,Лист1!$E$2:$F$20,2,FALSE)","v":"Komarov_IA@agat.local"},"2019-01-28",9,25,"Обычная"]
["Формирование брошюр ",null,null,null,null,null,null,null,null,null,null,null,null,null,null,null,null,null,null,null,null,null,null,null,null,null,null,null,null,null,null,null,null,null,null,null,null,null,null,null,null,null,null,null,null,{"$f":"AT4","v":"2019-02-14"},null,null,null,null,null,null,null,null,null,null,null,null,null,null,null,null,null,null,null,null,null,null,null,null,null,null,null,null,null,null,null,null,null,null,null,null,null,null,null,null,null,null,null,null,null,"КОМАРОВ|УКОЛОВА",null,null,null,{"$f":"VLOOKUP(CN9,Лист1!$E$2:$F$20,2,FALSE)","v":"Komarov_IA@agat.local; Ukolova_OY@agat.local"},"2019-02-14",9,25,"Обычная"]
["Дизайн",null,null,null,null,null,null,null,null,null,null,null,null,null,null,null,null,null,null,null,null,null,null,null,null,null,null,null,null,null,null,null,null,null,null,null,null,null,null,null,null,null,{"$f":"AQ4","v":"2019-02-11"},null,null,null,null,null,null,null,null,null,null,null,null,null,null,null,null,null,null,null,null,null,null,null,null,null,null,null,null,null,null,null,null,null,null,null,null,null,null,null,null,null,null,null,null,null,null,null,null,"УКОЛОВА",null,null,null,{"$f":"VLOOKUP(CN10,Лист1!$E$2:$F$20,2,FALSE)","v":"Ukolova_OY@agat.local"},"2019-02-11",9,25,"Обычная"]
["Утверждение/Верстка брошюр",null,null,null,null,null,null,null,null,null,null,null,null,null,null,null,null,null,null,null,null,null,null,null,null,null,null,null,null,null,null,null,null,null,null,null,null,null,null,null,null,null,null,null,{"$f":"AS4","v":"2019-02-13"},null,null,null,null,null,null,null,null,null,null,null,null,null,null,null,null,null,null,null,null,null,null,null,null,null,null,null,null,null,null,null,null,null,null,null,null,null,null,null,null,null,null,null,null,null,null,"КОМАРОВ",null,null,null,{"$f":"VLOOKUP(CN11,Лист1!$E$2:$F$20,2,FALSE)","v":"Komarov_IA@agat.local"},"2019-02-13",9,25,"Обычная"]
["Разработка каталога гражданской продукции",null,null,null,null,null,null,null,null,null,null,null,null,null,null,null,null,null,null,null,null,null,null,null,null,null,null,null,null,null,null,null,null,null,null,null,null,null,null,null,null,null,null,null,null,null,null,null,null,null,null,null,null,null,null,null,null,null,null,null,null,null,null,null,null,null,null,null,null,null,null,null,null,null,null,null,null,null,null,null,null,null,null,null,null,null,null,null,null,null,null,"КОМАРОВ",null,null,null,{"$f":"VLOOKUP(CN12,Лист1!$E$2:$F$20,2,FALSE)","v":"Komarov_IA@agat.local"},{"$f":"INDEX(B12:CM12,1,MATCH(1,INDEX(1-ISBLANK(B12:CM12),1,0),0))","v":{"$error":"#N/A"}},9,25,"Обычная"]
["Дизайн каталога гражданской подукции",null,null,null,null,null,null,null,null,null,null,null,null,null,null,null,null,null,null,null,null,null,null,null,null,null,null,null,null,null,null,null,null,null,null,null,null,null,null,null,null,null,null,null,null,null,null,null,null,null,null,null,null,null,null,null,null,null,null,null,null,null,null,null,null,null,null,null,null,null,null,null,null,null,null,null,null,null,null,null,null,null,null,null,null,null,null,null,null,null,null,"УКОЛОВА",null,null,null,{"$f":"VLOOKUP(CN13,Лист1!$E$2:$F$20,2,FALSE)","v":"Ukolova_OY@agat.local"},{"$error":"#N/A"},9,25,"Обычная"]
["Утверждение/Верстка каталога ",null,null,null,null,null,null,null,null,null,null,null,null,null,null,null,null,null,null,null,null,null,null,null,null,null,null,null,null,null,null,null,null,null,null,null,null,null,null,null,null,null,null,null,null,null,null,null,null,null,null,null,null,null,null,null,null,null,null,null,null,null,null,null,null,null,null,null,null,null,null,null,null,null,null,null,null,null,null,null,null,null,null,null,null,null,null,null,null,null,null,"КОМАРОВ",null,null,null,{"$f":"VLOOKUP(CN14,Лист1!$E$2:$F$20,2,FALSE)","v":"Komarov_IA@agat.local"},{"$error":"#N/A"},9,25,"Обычная"]
["Листовки",null,null,null,null,null,null,null,null,null,null,null,null,null,null,null,null,null,null,null,null,null,null,null,null,null,null,null,null,null,null,null,null,null,null,null,null,null,null,null,null,null,null,null,null,null,null,null,null,null,null,null,null,null,null,null,null,null,null,null,{"$f":"BI4","v":"2019-03-01"},null,null,null,null,null,null,null,null,null,null,null,null,null,null,null,null,null,null,null,null,null,null,null,null,null,null,null,null,null,null,"КОМАРОВ|УКОЛОВА",null,null,null,{"$f":"VLOOKUP(CN15,Лист1!$E$2:$F$20,2,FALSE)","v":"Komarov_IA@agat.local; Ukolova_OY@agat.local"},"2019-03-01",9,25,"Обычная"]
["Дизайн  листовок",null,null,null,null,null,null,null,null,null,null,null,null,null,null,null,null,null,null,null,null,null,null,null,null,null,null,null,null,null,null,null,null,null,null,null,null,null,null,null,null,null,null,null,null,null,null,null,null,null,null,null,null,null,null,null,null,null,null,null,{"$f":"BI4","v":"2019-03-01"},null,null,null,null,null,null,null,null,null,null,null,null,null,null,null,null,null,null,null,null,null,null,null,null,null,null,null,null,null,null,"УКОЛОВА",null,null,null,{"$f":"VLOOKUP(CN16,Лист1!$E$2:$F$20,2,FALSE)","v":"Ukolova_OY@agat.local"},"2019-03-01",9,25,"Обычная"]
["Утверждение/Верстка брошюр",null,null,null,null,null,null,null,null,null,null,null,null,null,null,null,null,null,null,null,null,null,null,null,null,null,null,null,null,null,null,null,null,null,null,null,null,null,null,null,null,null,null,null,null,null,null,null,null,null,null,null,null,null,null,null,null,null,null,null,{"$f":"BI4","v":"2019-03-01"},null,null,null,null,null,null,null,null,null,null,null,null,null,null,null,null,null,null,null,null,null,null,null,null,null,null,null,null,null,null,"КОМАРОВ|УКОЛОВА",null,null,null,{"$f":"VLOOKUP(CN17,Лист1!$E$2:$F$20,2,FALSE)","v":"Komarov_IA@agat.local; Ukolova_OY@agat.local"},"2019-03-01",9,25,"Обычная"]
["Сувенирная продукция 2019",null,null,null,null,null,null,null,null,null,null,null,null,null,null,null,null,null,null,null,null,null,null,null,null,null,null,null,null,null,null,{"$f":"AF4","v":"2019-01-31"},null,null,null,null,null,null,null,null,null,null,null,null,null,null,null,null,null,null,null,null,null,null,null,null,null,null,null,null,null,null,null,null,null,null,null,null,null,null,null,null,null,null,null,null,null,null,null,null,null,null,null,null,null,null,null,null,null,null,null,"КОМАРОВ|УКОЛОВА",null,null,null,{"$f":"VLOOKUP(CN18,Лист1!$E$2:$F$20,2,FALSE)","v":"Komarov_IA@agat.local; Ukolova_OY@agat.local"},"2019-01-31",9,25,"Обычная"]
["Промо к-т сувенирной продукции ",null,null,null,null,null,null,null,null,null,null,{"$f":"L4","v":"2019-01-11"},null,null,null,null,null,null,null,null,null,null,null,null,null,null,null,null,null,null,null,null,null,null,null,null,null,null,null,null,null,null,null,null,null,null,null,null,null,null,null,null,null,null,null,null,null,null,null,null,null,null,null,null,null,null,null,null,null,null,null,null,null,null,null,null,null,null,null,null,null,null,null,null,null,null,null,null,null,null,null,"УКОЛОВА",null,null,null,{"$f":"VLOOKUP(CN19,Лист1!$E$2:$F$20,2,FALSE)","v":"Ukolova_OY@agat.local"},"2019-01-11",9,25,"Обычная"]
["Бизнес к-т сувенирной продукции",null,null,null,null,null,null,null,null,null,null,null,null,null,null,null,null,null,{"$f":"S4","v":"2019-01-18"},null,null,null,null,null,null,null,null,null,null,null,null,null,null,null,null,null,null,null,null,null,null,null,null,null,null,null,null,null,null,null,null,null,null,null,null,null,null,null,null,null,null,null,null,null,null,null,null,null,null,null,null,null,null,null,null,null,null,null,null,null,null,null,null,null,null,null,null,null,null,null,null,"УКОЛОВА",null,null,null,{"$f":"VLOOKUP(CN20,Лист1!$E$2:$F$20,2,FALSE)","v":"Ukolova_OY@agat.local"},"2019-01-18",9,25,"Обычная"]
["Новогодний к-т сувенирной продукции",null,null,null,null,null,null,null,null,null,null,null,null,null,null,null,null,null,null,null,null,null,{"$f":"W4","v":"2019-01-22"},null,null,null,null,null,null,null,null,null,null,null,null,null,null,null,null,null,null,null,null,null,null,null,null,null,null,null,null,null,null,null,null,null,null,null,null,null,null,null,null,null,null,null,null,null,null,null,null,null,null,null,null,null,null,null,null,null,null,null,null,null,null,null,null,null,null,null,null,"УКОЛОВА",null,null,null,{"$f":"VLOOKUP(CN21,Лист1!$E$2:$F$20,2,FALSE)","v":"Ukolova_OY@agat.local"},"2019-01-22",9,25,"Обычная"]
["Новогодний к-т сувенирной продукции ГД",null,null,null,null,null,null,null,null,null,null,null,null,null,null,null,null,null,null,null,null,null,null,null,null,null,null,null,null,{"$f":"AD4","v":"2019-01-29"},null,null,null,null,null,null,null,null,null,null,null,null,null,null,null,null,null,null,null,null,null,null,null,null,null,null,null,null,null,null,null,null,null,null,null,null,null,null,null,null,null,null,null,null,null,null,null,null,null,null,null,null,null,null,null,null,null,null,null,null,null,"УКОЛОВА",null,null,null,{"$f":"VLOOKUP(CN22,Лист1!$E$2:$F$20,2,FALSE)","v":"Ukolova_OY@agat.local"},"2019-01-29",9,25,"Обычная"]
["Корпоративный vip подарок",null,null,null,null,null,null,null,null,null,null,null,null,null,null,null,null,null,null,null,null,null,null,null,null,null,null,null,null,{"$f":"AD4","v":"2019-01-29"},null,null,null,null,null,null,null,null,null,null,null,null,null,null,null,null,null,null,null,null,null,null,null,null,null,null,null,null,null,null,null,null,null,null,null,null,null,null,null,null,null,null,null,null,null,null,null,null,null,null,null,null,null,null,null,null,null,null,null,null,null,"КОМАРОВ|УКОЛОВА",null,null,null,{"$f":"VLOOKUP(CN23,Лист1!$E$2:$F$20,2,FALSE)","v":"Komarov_IA@agat.local; Ukolova_OY@agat.local"},"2019-01-29",9,25,"Обычная"]
["Корпоративные открытки",null,null,null,null,null,null,null,null,null,null,null,null,null,null,null,null,null,null,null,null,null,null,null,null,null,null,null,null,{"$f":"AD4","v":"2019-01-29"},null,null,null,null,null,null,null,null,null,null,null,null,null,null,null,null,null,null,null,null,null,null,null,null,null,null,null,null,null,null,null,null,null,null,null,null,null,null,null,null,null,null,null,null,null,null,null,null,null,null,null,null,null,null,null,null,null,null,null,null,null,"КОМАРОВ",null,null,null,{"$f":"VLOOKUP(CN24,Лист1!$E$2:$F$20,2,FALSE)","v":"Komarov_IA@agat.local"},"2019-01-29",9,25,"Обычная"]
["ОСНОВНЫЕ ЗАДАЧИ",null,null,null,null,null,null,null,null,null,null,null,null,null,null,null,null,null,null,null,null,null,null,null,null,null,null,null,null,null,null,null,null,null,null,null,null,null,null,null,null,null,null,null,null,null,null,null,null,null,null,null,null,null,null,null,null,null,null,null,null,null,null,null,null,null,null,null,null,null,null,null,null,null,null,null,null,null,null,null,null,null,null,null,null,null,null,null,null,null,null,null,null,null,null,{"$f":"VLOOKUP(CN25,Лист1!$E$2:$F$20,2,FALSE)","v":{"$error":"#N/A"}},{"$error":"#N/A"},9,25,"Обычная"]
["Отработка заявок",null,null,null,null,null,null,null,null,null,null,null,null,null,null,null,null,null,null,null,null,null,null,null,null,null,null,null,null,null,null,null,null,null,null,null,null,null,null,null,null,null,null,null,null,null,null,null,null,null,null,null,null,null,null,null,null,null,null,null,null,null,null,null,null,null,null,null,null,null,null,null,null,null,null,null,null,null,null,null,null,null,null,null,null,null,null,null,null,null,null,"УКОЛОВА|ФЕДОТОВА|КОМАРОВ",null,null,null,{"$f":"VLOOKUP(CN26,Лист1!$E$2:$F$20,2,FALSE)","v":"Komarov_IA@agat.local; Ukolova_OY@agat.local; Fedotova_AS@agat.local"},{"$error":"#N/A"},9,25,"Обычная"]
["Печать   полиграфии ",null,null,null,null,null,null,null,null,null,null,null,null,null,null,null,null,null,null,null,null,null,null,null,null,null,null,null,null,null,null,null,null,null,null,null,null,null,null,null,null,null,null,null,null,null,null,null,null,null,null,null,null,null,null,null,null,null,null,null,null,null,null,null,null,null,null,null,null,null,null,null,null,null,null,null,null,null,null,null,null,null,null,null,null,null,null,null,null,null,null,"КОМАРОВ|УКОЛОВА|ФЕДОТОВА",null,null,null,{"$f":"VLOOKUP(CN27,Лист1!$E$2:$F$20,2,FALSE)","v":"Komarov_IA@agat.local; Ukolova_OY@agat.local; Fedotova_AS@agat.local"},{"$error":"#N/A"},9,25,"Обычная"]
["Администрирование сайта",null,null,null,null,null,null,null,null,null,null,null,null,null,null,null,null,null,null,null,null,null,null,null,null,null,null,null,null,null,null,null,null,null,null,null,null,null,null,null,null,null,null,null,null,null,null,null,null,null,null,null,null,null,null,null,null,null,null,null,null,null,null,null,null,null,null,null,null,null,null,null,null,null,null,null,null,null,null,null,null,null,null,null,null,null,null,null,null,null,null,"ПЛОТНИКОВ",null,null,null,{"$f":"VLOOKUP(CN28,Лист1!$E$2:$F$20,2,FALSE)","v":"Plotnikov_IA@agat.local"},{"$error":"#N/A"},9,25,"Обычная"]
["Администрирование программы работы с ДЗО",null,null,null,null,null,null,null,null,null,null,null,null,null,null,null,null,null,null,null,null,null,null,null,null,null,null,null,null,null,null,null,null,null,null,null,null,null,null,null,null,null,null,null,null,null,null,null,null,null,null,null,null,null,null,null,null,null,null,null,null,null,null,null,null,null,null,null,null,null,null,null,null,null,null,null,null,null,null,null,null,null,null,null,null,null,null,null,null,null,null,"ПЛОТНИКОВ",null,null,null,{"$f":"VLOOKUP(CN29,Лист1!$E$2:$F$20,2,FALSE)","v":"Plotnikov_IA@agat.local"},{"$error":"#N/A"},9,25,"Обычная"]
["Корп ТВ",null,null,null,null,null,null,null,null,null,null,null,null,null,null,null,null,null,null,null,null,null,null,null,null,null,null,null,null,null,null,null,null,null,null,null,null,null,null,null,null,null,null,null,null,null,null,null,null,null,null,null,null,null,null,null,null,null,null,null,null,null,null,null,null,null,null,null,null,null,null,null,null,null,null,null,null,null,null,null,null,null,null,null,null,null,null,null,null,null,null,"ФЕДОТОВА",null,null,null,{"$f":"VLOOKUP(CN30,Лист1!$E$2:$F$20,2,FALSE)","v":"Fedotova_AS@agat.local"},{"$error":"#N/A"},9,25,"Обычная"]
["Разработка планов помещений Концерна",null,null,null,null,null,null,null,null,null,null,null,null,null,null,null,null,null,null,null,null,null,null,null,null,null,null,null,null,null,null,null,null,null,null,null,null,null,null,null,null,null,null,null,null,null,null,null,null,null,null,null,null,null,null,null,null,null,null,null,null,null,null,null,null,null,null,null,null,null,null,null,null,null,null,null,null,null,null,null,null,null,null,null,null,null,null,null,null,null,null,"МИНДРЮКОВ",null,null,null,{"$f":"VLOOKUP(CN31,Лист1!$E$2:$F$20,2,FALSE)","v":"Mindrukov_DG@agat.local"},{"$error":"#N/A"},9,25,"Обычная"]
["Фотосъемка",null,null,null,null,null,null,null,null,null,null,null,null,null,null,null,null,null,null,null,null,null,null,null,null,null,null,null,null,null,null,null,null,null,null,null,null,null,null,null,null,null,null,null,null,null,null,null,null,null,null,null,null,null,null,null,null,null,null,null,null,null,null,null,null,null,null,null,null,null,null,null,null,null,null,null,null,null,null,null,null,null,null,null,null,null,null,null,null,null,null,"КАРПЫЧЕВА|ФЕДОТОВА",null,null,null,{"$f":"VLOOKUP(CN32,Лист1!$E$2:$F$20,2,FALSE)","v":"Karpicheva_EA@agat.local;Fedotova_AS@agat.local"},{"$error":"#N/A"},9,25,"Обычная"]
["Инвентаризация склада",null,null,null,null,null,null,null,null,null,null,null,null,null,null,null,null,null,null,null,null,null,null,null,null,null,null,null,null,null,null,null,null,null,null,null,null,null,null,null,null,null,null,null,null,null,null,null,null,null,null,null,null,null,null,null,null,null,null,null,null,null,null,null,null,null,null,null,null,null,null,null,null,null,null,null,null,null,null,null,null,null,null,null,null,null,null,null,{"$f":"CK4","v":"2019-03-29"},null,null,"МИНДРЮКОВ",null,null,null,{"$f":"VLOOKUP(CN33,Лист1!$E$2:$F$20,2,FALSE)","v":"Mindrukov_DG@agat.local"},"2019-03-29",9,25,"Обычная"]
["АНИМАЦИЯ&МОДЕЛИНГ&ПРОЕКТИРОВАНИЕ",null,null,null,null,null,null,null,null,null,null,null,null,null,null,null,null,null,null,null,null,null,null,null,null,null,null,null,null,null,null,null,null,null,null,null,null,null,null,null,null,null,null,null,null,null,null,null,null,null,null,null,null,null,null,null,null,null,null,null,null,null,null,null,null,null,null,null,null,null,null,null,null,null,null,null,null,null,null,null,null,null,null,null,null,null,null,null,null,null,null,null,null,null,null,{"$f":"VLOOKUP(CN34,Лист1!$E$2:$F$20,2,FALSE)","v":{"$error":"#N/A"}},{"$error":"#N/A"},9,25,"Обычная"]
["3D видеоролик ИСБУ",null,null,null,null,null,null,null,null,null,null,null,null,null,null,null,null,null,null,null,null,null,null,null,null,null,null,null,null,null,null,null,null,null,null,null,null,null,null,null,null,null,null,null,null,null,null,null,null,null,null,null,null,null,null,null,null,null,null,null,null,null,null,null,null,null,null,null,null,null,null,null,null,null,null,null,null,null,null,null,null,null,null,null,null,null,null,null,null,null,null,"НИКИФОРОВ",null,null,null,{"$f":"VLOOKUP(CN35,Лист1!$E$2:$F$20,2,FALSE)","v":"Nikiforov_DA@agat.local"},{"$error":"#N/A"},9,25,"Обычная"]
["Режиссура, моделирование и спецэффекты",null,null,null,null,null,null,null,null,null,null,null,null,null,null,null,null,null,null,null,null,null,null,null,null,null,null,null,null,null,null,null,null,null,null,null,null,null,null,null,null,null,null,null,null,null,null,null,null,null,null,null,null,null,null,null,null,null,null,null,null,null,null,null,null,null,null,null,null,null,null,null,null,null,null,null,null,null,null,null,null,null,null,null,null,null,null,null,null,null,null,"НИКИФОРОВ",null,null,null,{"$f":"VLOOKUP(CN36,Лист1!$E$2:$F$20,2,FALSE)","v":"Nikiforov_DA@agat.local"},{"$error":"#N/A"},9,25,"Обычная"]
["Анимация: \"Ликивдация диверсантов\"",null,null,null,null,null,null,null,null,null,null,null,null,null,null,null,null,null,null,null,null,null,null,null,null,null,null,null,null,null,null,null,null,null,null,null,null,null,null,null,null,null,{"$f":"AQ4","v":"2019-02-11"},null,null,null,null,null,null,null,null,null,null,null,null,null,null,null,null,null,null,null,null,null,null,null,null,null,null,null,null,null,null,null,null,null,null,null,null,null,null,null,null,null,null,null,null,null,null,null,null,"КОВАЛЕВ",null,null,null,{"$f":"VLOOKUP(CN37,Лист1!$E$2:$F$20,2,FALSE)","v":"Kovalev_PV@agat.local"},"2019-02-11",9,25,"Обычная"]
["Анимация: \"Уничтожение дисанктной группы\"",null,null,null,null,null,null,null,null,null,null,null,null,null,null,null,null,null,null,null,null,null,null,null,null,null,null,null,null,null,null,null,null,null,null,null,null,null,null,null,null,null,null,null,null,null,null,null,null,null,null,null,null,null,null,null,null,null,null,null,null,null,null,null,null,null,null,null,null,null,null,null,null,null,null,null,null,null,null,null,null,null,null,null,{"$f":"CG4","v":"2019-03-25"},null,null,null,null,null,null,"КОВАЛЕВ",null,null,null,{"$f":"VLOOKUP(CN38,Лист1!$E$2:$F$20,2,FALSE)","v":"Kovalev_PV@agat.local"},"2019-03-25",9,25,"Обычная"]
["Анимация: \"Поиск и уничтожение противника\"",null,null,null,null,null,null,null,null,null,null,null,null,null,null,null,null,null,null,null,null,null,null,null,null,null,null,null,null,null,null,null,null,null,null,null,null,null,null,null,null,null,null,null,null,null,null,null,null,null,null,null,null,null,null,null,null,null,null,null,null,null,null,null,null,null,null,null,null,null,null,null,null,null,null,null,null,null,null,null,null,null,null,null,null,null,null,null,null,null,null,"КОВАЛЕВ",null,null,null,{"$f":"VLOOKUP(CN39,Лист1!$E$2:$F$20,2,FALSE)","v":"Kovalev_PV@agat.local"},{"$error":"#N/A"},9,25,"Обычная"]
["Моделирование дисантной группы",null,null,null,null,null,null,null,null,null,null,null,null,null,null,null,null,null,null,null,null,null,null,null,null,null,null,null,null,null,null,null,null,null,null,null,null,null,null,null,null,null,null,null,null,null,null,null,null,null,null,null,null,null,null,null,null,null,null,null,null,null,null,null,null,null,null,null,null,null,{"$f":"BS4","v":"2019-03-11"},null,null,null,null,null,null,null,null,null,null,null,null,null,null,null,null,null,null,null,null,"ЮМАШЕВ",null,null,null,{"$f":"VLOOKUP(CN40,Лист1!$E$2:$F$20,2,FALSE)","v":"Yumashev_YY@agat.local"},"2019-03-11",9,25,"Обычная"]
["Моделирование диверсантов",null,null,null,null,null,null,null,null,null,null,null,null,null,null,null,null,null,null,null,null,null,null,null,null,null,null,null,null,null,null,null,null,null,null,{"$f":"AJ4","v":"2019-02-04"},null,null,null,null,null,null,null,null,null,null,null,null,null,null,null,null,null,null,null,null,null,null,null,null,null,null,null,null,null,null,null,null,null,null,null,null,null,null,null,null,null,null,null,null,null,null,null,null,null,null,null,null,null,null,null,"КОЗЛОВ",null,null,null,{"$f":"VLOOKUP(CN41,Лист1!$E$2:$F$20,2,FALSE)","v":"Kozlov_AN@agat.local"},"2019-02-04",9,25,"Обычная"]
["Моделирование сцены поиска противника",null,null,null,null,null,null,null,null,null,null,null,null,null,null,null,null,null,null,null,null,null,null,null,null,null,null,null,null,null,null,null,null,null,null,null,null,null,null,null,null,null,null,null,null,null,null,null,null,null,null,null,null,null,null,null,null,null,null,null,null,null,null,null,null,null,null,null,null,null,null,null,null,null,null,null,null,null,null,null,null,null,null,null,null,null,null,null,null,null,null,"КОЗЛОВ|ЮМАШЕВ",null,null,null,{"$f":"VLOOKUP(CN42,Лист1!$E$2:$F$20,2,FALSE)","v":{"$error":"#N/A"}},{"$error":"#N/A"},9,25,"Обычная"]
["Программирование",null,null,null,null,null,null,null,null,null,null,null,null,null,null,null,null,null,null,null,null,null,null,null,null,null,null,null,null,null,null,null,null,null,null,null,null,null,null,null,null,null,null,null,null,null,null,null,null,null,null,null,null,null,null,null,null,null,null,null,null,null,null,null,null,null,null,null,null,null,null,null,null,null,null,null,null,null,null,null,null,null,null,null,null,null,null,null,null,null,null,"ПЛОТНИКОВ",null,null,null,{"$f":"VLOOKUP(CN43,Лист1!$E$2:$F$20,2,FALSE)","v":"Plotnikov_IA@agat.local"},{"$error":"#N/A"},9,25,"Обычная"]
["МЕРОПРИЯТИЯ",null,null,null,null,null,null,null,null,null,null,null,null,null,null,null,null,null,null,null,null,null,null,null,null,null,null,null,null,null,null,null,null,null,null,null,null,null,null,null,null,null,null,null,null,null,null,null,null,null,null,null,null,null,null,null,null,null,null,null,null,null,null,null,null,null,null,null,null,null,null,null,null,null,null,null,null,null,null,null,null,null,null,null,null,null,null,null,null,null,null,null,null,null,null,{"$f":"VLOOKUP(CN44,Лист1!$E$2:$F$20,2,FALSE)","v":{"$error":"#N/A"}},{"$error":"#N/A"},9,25,"Обычная"]
["День Защитника Отечества ",null,null,null,null,null,null,null,null,null,null,null,null,null,null,null,null,null,null,null,null,null,null,null,null,null,null,null,null,null,null,null,null,null,null,null,null,null,null,null,null,null,null,null,null,null,null,null,null,null,null,null,null,{"$f":"BB4","v":"2019-02-22"},null,null,null,null,null,null,null,null,null,null,null,null,null,null,null,null,null,null,null,null,null,null,null,null,null,null,null,null,null,null,null,null,null,null,null,null,null,"КОМАРОВ",null,null,null,{"$f":"VLOOKUP(CN45,Лист1!$E$2:$F$20,2,FALSE)","v":"Komarov_IA@agat.local"},"2019-02-22",9,25,"Обычная"]
["Макет поздравительной открытки ",null,null,null,null,null,null,null,null,null,null,null,null,null,null,null,null,null,null,null,null,null,null,null,null,null,null,null,null,null,null,null,null,null,null,null,{"$f":"AK4","v":"2019-02-05"},null,null,null,null,null,null,null,null,null,null,null,null,null,null,null,null,null,null,null,null,null,null,null,null,null,null,null,null,null,null,null,null,null,null,null,null,null,null,null,null,null,null,null,null,null,null,null,null,null,null,null,null,null,null,"КОМАРОВ",null,null,null,{"$f":"VLOOKUP(CN46,Лист1!$E$2:$F$20,2,FALSE)","v":"Komarov_IA@agat.local"},"2019-02-05",9,25,"Обычная"]
["Поздравительный видеоролик",null,null,null,null,null,null,null,null,null,null,null,null,null,null,null,null,null,null,null,null,null,null,null,null,null,null,null,null,null,null,null,null,null,null,null,null,null,null,null,null,null,{"$f":"AQ4","v":"2019-02-11"},null,null,null,null,null,null,null,null,null,null,null,null,null,null,null,null,null,null,null,null,null,null,null,null,null,null,null,null,null,null,null,null,null,null,null,null,null,null,null,null,null,null,null,null,null,null,null,null,"КАРПЫЧЕВА",null,null,null,{"$f":"VLOOKUP(CN47,Лист1!$E$2:$F$20,2,FALSE)","v":"Karpicheva_EA@agat.local"},"2019-02-11",9,25,"Обычная"]
["Нас поздравили с 23-м",null,null,null,null,null,null,null,null,null,null,null,null,null,null,null,null,null,null,null,null,null,null,null,null,null,null,null,null,null,null,null,null,null,null,null,null,null,null,null,null,null,null,null,null,null,null,null,null,null,null,null,{"$f":"BA4","v":"2019-02-21"},null,null,null,null,null,null,null,null,null,null,null,null,null,null,null,null,null,null,null,null,null,null,null,null,null,null,null,null,null,null,null,null,null,null,null,null,null,null,"ФЕДОТОВА",null,null,null,{"$f":"VLOOKUP(CN48,Лист1!$E$2:$F$20,2,FALSE)","v":"Fedotova_AS@agat.local"},null,null,null,"Обычная"]
["Поздравительный плакат",null,null,null,null,null,null,null,null,null,null,null,null,null,null,null,null,null,null,null,null,null,null,null,null,null,null,null,null,null,null,null,null,null,null,null,null,null,null,null,null,null,null,null,null,null,null,null,null,{"$f":"AX4","v":"2019-02-18"},null,null,null,null,null,null,null,null,null,null,null,null,null,null,null,null,null,null,null,null,null,null,null,null,null,null,null,null,null,null,null,null,null,null,null,null,null,null,null,null,null,"УКОЛОВА",null,null,null,{"$f":"VLOOKUP(CN49,Лист1!$E$2:$F$20,2,FALSE)","v":"Ukolova_OY@agat.local"},"2019-02-18",9,25,"Обычная"]
["Выставка АЙДЕКС-2019",null,null,null,null,null,null,null,null,null,null,null,null,null,null,null,null,null,null,null,null,null,null,null,null,null,null,null,null,null,null,null,null,null,null,null,null,null,null,null,null,null,null,null,null,null,null,null,null,null,null,null,null,{"$f":"BB4","v":"2019-02-22"},null,null,null,null,null,null,null,null,null,null,null,null,null,null,null,null,null,null,null,null,null,null,null,null,null,null,null,null,null,null,null,null,null,null,null,null,null,"КАРПЫЧЕВА",null,null,null,{"$f":"VLOOKUP(CN50,Лист1!$E$2:$F$20,2,FALSE)","v":"Karpicheva_EA@agat.local"},"2019-02-22",9,25,"Обычная"]
["Разработка дизайна стенда ",null,null,null,null,null,null,null,null,null,{"$f":"K4","v":"2019-01-10"},null,null,null,null,null,null,null,null,null,null,null,null,null,null,null,null,null,null,null,null,null,null,null,null,null,null,null,null,null,null,null,null,null,null,null,null,null,null,null,null,null,null,null,null,null,null,null,null,null,null,null,null,null,null,null,null,null,null,null,null,null,null,null,null,null,null,null,null,null,null,null,null,null,null,null,null,null,null,null,null,"КАРПЫЧЕВА",null,null,null,{"$f":"VLOOKUP(CN51,Лист1!$E$2:$F$20,2,FALSE)","v":"Karpicheva_EA@agat.local"},"2019-01-10",9,25,"Обычная"]
["Подготовка чертежи",null,null,null,null,null,null,null,null,null,null,{"$f":"L4","v":"2019-01-11"},null,null,null,null,null,null,null,null,null,null,null,null,null,null,null,null,null,null,null,null,null,null,null,null,null,null,null,null,null,null,null,null,null,null,null,null,null,null,null,null,null,null,null,null,null,null,null,null,null,null,null,null,null,null,null,null,null,null,null,null,null,null,null,null,null,null,null,null,null,null,null,null,null,null,null,null,null,null,null,"КАРПЫЧЕВА",null,null,null,{"$f":"VLOOKUP(CN52,Лист1!$E$2:$F$20,2,FALSE)","v":"Karpicheva_EA@agat.local"},"2019-01-11",9,25,"Обычная"]
["Подготовка графики",null,null,null,null,null,null,null,null,null,null,null,null,null,null,null,null,null,{"$f":"S4","v":"2019-01-18"},null,null,null,null,null,null,null,null,null,null,null,null,null,null,null,null,null,null,null,null,null,null,null,null,null,null,null,null,null,null,null,null,null,null,null,null,null,null,null,null,null,null,null,null,null,null,null,null,null,null,null,null,null,null,null,null,null,null,null,null,null,null,null,null,null,null,null,null,null,null,null,null,"КАРПЫЧЕВА",null,null,null,{"$f":"VLOOKUP(CN53,Лист1!$E$2:$F$20,2,FALSE)","v":"Karpicheva_EA@agat.local"},"2019-01-18",9,25,"Обычная"]
["Печать полиграфии",null,null,null,null,null,null,null,null,null,null,null,null,null,null,null,null,null,null,null,null,null,null,null,null,null,null,null,null,null,null,null,null,null,null,null,null,null,null,{"$f":"AN4","v":"2019-02-08"},null,null,null,null,null,null,null,null,null,null,null,null,null,null,null,null,null,null,null,null,null,null,null,null,null,null,null,null,null,null,null,null,null,null,null,null,null,null,null,null,null,null,null,null,null,null,null,null,null,null,null,"КОМАРОВ",null,null,null,{"$f":"VLOOKUP(CN54,Лист1!$E$2:$F$20,2,FALSE)","v":"Komarov_IA@agat.local"},"2019-02-08",9,25,"Обычная"]
["Буклет программы участия",null,null,null,null,null,null,null,null,null,null,null,null,null,null,null,null,null,null,null,null,null,null,null,null,null,null,null,null,null,null,null,null,null,null,null,null,null,null,{"$f":"AN4","v":"2019-02-08"},null,null,null,null,null,null,null,null,null,null,null,null,null,null,null,null,null,null,null,null,null,null,null,null,null,null,null,null,null,null,null,null,null,null,null,null,null,null,null,null,null,null,null,null,null,null,null,null,null,null,null,"КОМАРОВ",null,null,null,{"$f":"VLOOKUP(CN55,Лист1!$E$2:$F$20,2,FALSE)","v":"Komarov_IA@agat.local"},"2019-02-08",9,25,"Обычная"]
["Отчетный видеоролик",null,null,null,null,null,null,null,null,null,null,null,null,null,null,null,null,null,null,null,null,null,null,null,null,null,null,null,null,null,null,null,null,null,null,null,null,null,null,null,null,null,null,null,null,null,null,null,null,null,null,null,null,{"$f":"BB4","v":"2019-02-22"},null,null,null,null,null,null,null,null,null,null,null,null,null,null,null,null,null,null,null,null,null,null,null,null,null,null,null,null,null,null,null,null,null,null,null,null,null,"ФЕДОТОВА",null,null,null,{"$f":"VLOOKUP(CN56,Лист1!$E$2:$F$20,2,FALSE)","v":"Fedotova_AS@agat.local"},"2019-02-22",9,25,"Обычная"]
["Отчетный плакат",null,null,null,null,null,null,null,null,null,null,null,null,null,null,null,null,null,null,null,null,null,null,null,null,null,null,null,null,null,null,null,null,null,null,null,null,null,null,null,null,null,null,null,null,null,null,null,null,null,null,null,{"$f":"BA4","v":"2019-02-21"},null,null,null,null,null,null,null,null,null,null,null,null,null,null,null,null,null,null,null,null,null,null,null,null,null,null,null,null,null,null,null,null,null,null,null,null,null,null,"ФЕДОТОВА",null,null,null,{"$f":"VLOOKUP(CN57,Лист1!$E$2:$F$20,2,FALSE)","v":"Fedotova_AS@agat.local"},"2019-02-21",9,25,"Обычная"]
["Международны женский день",null,null,null,null,null,null,null,null,null,null,null,null,null,null,null,null,null,null,null,null,null,null,null,null,null,null,null,null,null,null,null,null,null,null,null,null,null,null,null,null,null,null,null,null,null,null,null,null,null,null,null,null,null,null,null,null,null,null,null,null,null,null,null,null,null,null,{"$f":"BP4","v":"2019-03-08"},null,null,null,null,null,null,null,null,null,null,null,null,null,null,null,null,null,null,null,null,null,null,null,"УКОЛОВА",null,null,null,{"$f":"VLOOKUP(CN58,Лист1!$E$2:$F$20,2,FALSE)","v":"Ukolova_OY@agat.local"},"2019-03-08",9,25,"Обычная"]
["Макет поздравительной открытки ",null,null,null,null,null,null,null,null,null,null,null,null,null,null,null,null,null,null,null,null,null,null,null,null,null,null,null,null,null,null,null,null,null,null,null,null,null,null,null,null,null,null,null,null,null,null,null,null,null,null,null,null,null,null,null,{"$f":"BE4","v":"2019-02-25"},null,null,null,null,null,null,null,null,null,null,null,null,null,null,null,null,null,null,null,null,null,null,null,null,null,null,null,null,null,null,null,null,null,null,"УКОЛОВА",null,null,null,{"$f":"VLOOKUP(CN59,Лист1!$E$2:$F$20,2,FALSE)","v":"Ukolova_OY@agat.local"},"2019-02-25",9,25,"Обычная"]
["Поздравительный видеоролик ТВ",null,null,null,null,null,null,null,null,null,null,null,null,null,null,null,null,null,null,null,null,null,null,null,null,null,null,null,null,null,null,null,null,null,null,null,null,null,null,null,null,null,null,null,null,null,null,null,null,null,null,null,null,null,null,null,{"$f":"BE4","v":"2019-02-25"},null,null,null,null,null,null,null,null,null,null,null,null,null,null,null,null,null,null,null,null,null,null,null,null,null,null,null,null,null,null,null,null,null,null,"ФЕДОТОВА",null,null,null,{"$f":"VLOOKUP(CN60,Лист1!$E$2:$F$20,2,FALSE)","v":"Fedotova_AS@agat.local"},"2019-02-25",9,25,"Обычная"]
["Поздравительный плакат",null,null,null,null,null,null,null,null,null,null,null,null,null,null,null,null,null,null,null,null,null,null,null,null,null,null,null,null,null,null,null,null,null,null,null,null,null,null,null,null,null,null,null,null,null,null,null,null,null,null,null,null,null,null,null,{"$f":"BE4","v":"2019-02-25"},null,null,null,null,null,null,null,null,null,null,null,null,null,null,null,null,null,null,null,null,null,null,null,null,null,null,null,null,null,null,null,null,null,null,"УКОЛОВА",null,null,null,{"$f":"VLOOKUP(CN61,Лист1!$E$2:$F$20,2,FALSE)","v":"Ukolova_OY@agat.local"},"2019-02-25",9,25,"Обычная"]
["День подводника",null,null,null,null,null,null,null,null,null,null,null,null,null,null,null,null,null,null,null,null,null,null,null,null,null,null,null,null,null,null,null,null,null,null,null,null,null,null,null,null,null,null,null,null,null,null,null,null,null,null,null,null,null,null,null,null,null,null,null,null,null,null,null,null,null,null,null,null,null,null,null,null,null,null,null,null,null,{"$f":"CA4","v":"2019-03-19"},null,null,null,null,null,null,null,null,null,null,null,null,"УКОЛОВА",null,null,null,{"$f":"VLOOKUP(CN62,Лист1!$E$2:$F$20,2,FALSE)","v":"Ukolova_OY@agat.local"},"2019-03-19",9,25,"Обычная"]
["Поздравительный видеоролик ТВ",null,null,null,null,null,null,null,null,null,null,null,null,null,null,null,null,null,null,null,null,null,null,null,null,null,null,null,null,null,null,null,null,null,null,null,null,null,null,null,null,null,null,null,null,null,null,null,null,null,null,null,null,null,null,null,null,null,null,null,null,null,null,null,null,null,null,null,null,null,null,null,{"$f":"BU4","v":"2019-03-13"},null,null,null,null,null,null,null,null,null,null,null,null,null,null,null,null,null,null,"ФЕДОТОВА",null,null,null,{"$f":"VLOOKUP(CN63,Лист1!$E$2:$F$20,2,FALSE)","v":"Fedotova_AS@agat.local"},"2019-03-13",9,25,"Обычная"]
["Поздравительный плакат",null,null,null,null,null,null,null,null,null,null,null,null,null,null,null,null,null,null,null,null,null,null,null,null,null,null,null,null,null,null,null,null,null,null,null,null,null,null,null,null,null,null,null,null,null,null,null,null,null,null,null,null,null,null,null,null,null,null,null,null,null,null,null,null,null,null,null,null,null,null,null,{"$f":"BU4","v":"2019-03-13"},null,null,null,null,null,null,null,null,null,null,null,null,null,null,null,null,null,null,"УКОЛОВА",null,null,null,{"$f":"VLOOKUP(CN64,Лист1!$E$2:$F$20,2,FALSE)","v":"Ukolova_OY@agat.local"},"2019-03-13",9,25,"Обычная"]
["День рождения Концерна",null,null,null,null,null,null,null,null,null,null,null,null,null,null,null,null,null,null,null,null,null,null,null,null,null,null,null,null,null,null,null,null,null,null,null,null,null,null,null,null,null,null,null,null,null,null,null,null,null,null,null,null,null,null,null,null,null,null,null,null,null,null,null,null,null,null,null,null,null,null,null,null,null,null,null,null,null,null,null,null,null,null,null,null,null,null,null,null,null,null,"КОМАРОВ",null,null,null,{"$f":"VLOOKUP(CN65,Лист1!$E$2:$F$20,2,FALSE)","v":"Komarov_IA@agat.local"},{"$error":"#N/A"},9,25,"Обычная"]
["Макет поздравительной открытки ",null,null,null,null,null,null,null,null,null,null,null,null,null,null,null,null,null,null,null,null,null,null,null,null,null,null,null,null,null,null,null,null,null,null,null,null,null,null,null,null,null,null,null,null,null,null,null,null,null,null,null,null,null,null,null,null,null,null,null,null,null,null,null,null,null,null,null,null,null,null,null,null,null,null,null,null,null,null,null,null,null,null,null,null,null,null,null,null,null,null,"УКОЛОВА",null,null,null,{"$f":"VLOOKUP(CN66,Лист1!$E$2:$F$20,2,FALSE)","v":"Ukolova_OY@agat.local"},{"$error":"#N/A"},9,25,"Обычная"]
["Поздравительный видеоролик ТВ",null,null,null,null,null,null,null,null,null,null,null,null,null,null,null,null,null,null,null,null,null,null,null,null,null,null,null,null,null,null,null,null,null,null,null,null,null,null,null,null,null,null,null,null,null,null,null,null,null,null,null,null,null,null,null,null,null,null,null,null,null,null,null,null,null,null,null,null,null,null,null,null,null,null,null,null,null,null,null,null,null,null,null,null,null,{"$f":"CI4","v":"2019-03-27"},null,null,null,null,"ФЕДОТОВА",null,null,null,{"$f":"VLOOKUP(CN67,Лист1!$E$2:$F$20,2,FALSE)","v":"Fedotova_AS@agat.local"},"2019-03-27",9,25,"Обычная"]
["Поздравительный плакат",null,null,null,null,null,null,null,null,null,null,null,null,null,null,null,null,null,null,null,null,null,null,null,null,null,null,null,null,null,null,null,null,null,null,null,null,null,null,null,null,null,null,null,null,null,null,null,null,null,null,null,null,null,null,null,null,null,null,null,null,null,null,null,null,null,null,null,null,null,null,null,null,null,null,null,null,null,null,null,null,null,null,null,null,null,{"$f":"CI4","v":"2019-03-27"},null,null,null,null,"КОМАРОВ",null,null,null,{"$f":"VLOOKUP(CN68,Лист1!$E$2:$F$20,2,FALSE)","v":"Komarov_IA@agat.local"},"2019-03-27",9,25,"Обычная"]
["Выставочный стенд Армия-2019",null,null,null,null,null,null,null,null,null,null,null,null,null,null,null,null,null,null,null,null,null,null,null,null,null,null,null,null,null,null,null,null,null,null,null,null,null,null,null,null,null,null,null,null,null,null,null,null,null,null,null,null,null,null,null,null,null,null,null,null,null,null,null,null,null,null,null,null,null,null,null,null,null,null,null,null,null,null,null,null,null,null,null,null,null,null,null,null,null,null,"КАРПЫЧЕВА",null,null,null,{"$f":"VLOOKUP(CN69,Лист1!$E$2:$F$20,2,FALSE)","v":"Karpicheva_EA@agat.local"},{"$error":"#N/A"},9,25,"Обычная"]
["Разработать ",null,null,null,null,null,null,null,null,null,null,null,null,null,null,null,null,null,null,null,null,null,null,null,null,null,null,null,null,null,null,null,null,null,null,null,null,null,null,{"$f":"AN4","v":"2019-02-08"},null,null,null,null,null,null,null,null,null,null,null,null,null,null,null,null,null,null,null,null,null,null,null,null,null,null,null,null,null,null,null,null,null,null,null,null,null,null,null,null,null,null,null,null,null,null,null,null,null,null,null,"КАРПЫЧЕВА",null,null,null,{"$f":"VLOOKUP(CN70,Лист1!$E$2:$F$20,2,FALSE)","v":"Karpicheva_EA@agat.local"},"2019-02-08",9,25,"Обычная"]
["Подготовить  чертежи",null,null,null,null,null,null,null,null,null,null,null,null,null,null,null,null,null,null,null,null,null,null,null,null,null,null,null,null,null,null,null,null,null,null,null,null,null,null,null,null,null,null,null,null,{"$f":"AT4","v":"2019-02-14"},null,null,null,null,null,null,null,null,null,null,null,null,null,null,null,null,null,null,null,null,null,null,null,null,null,null,null,null,null,null,null,null,null,null,null,null,null,null,null,null,null,null,null,null,null,"КАРПЫЧЕВА",null,null,null,{"$f":"VLOOKUP(CN71,Лист1!$E$2:$F$20,2,FALSE)","v":"Karpicheva_EA@agat.local"},"2019-02-14",9,25,"Обычная"]
["Поготовить графику",null,null,null,null,null,null,null,null,null,null,null,null,null,null,null,null,null,null,null,null,null,null,null,null,null,null,null,null,null,null,null,null,null,null,null,null,null,null,null,null,null,null,null,null,null,null,null,null,null,null,null,null,{"$f":"BB4","v":"2019-02-22"},null,null,null,null,null,null,null,null,null,null,null,null,null,null,null,null,null,null,null,null,null,null,null,null,null,null,null,null,null,null,null,null,null,null,null,null,null,"КАРПЫЧЕВА",null,null,null,{"$f":"VLOOKUP(CN72,Лист1!$E$2:$F$20,2,FALSE)","v":"Karpicheva_EA@agat.local"},"2019-02-22",9,25,"Обычная"]
["Выставочный стенд МВМС-2019",null,null,null,null,null,null,null,null,null,null,null,null,null,null,null,null,null,null,null,null,null,null,null,null,null,null,null,null,null,null,null,null,null,null,null,null,null,null,null,null,null,null,null,null,null,null,null,null,null,null,null,null,null,null,null,null,null,null,null,null,null,null,null,null,null,null,null,null,null,null,null,null,null,null,null,null,null,null,null,null,null,null,null,null,null,null,null,null,null,null,"МИНДРЮКОВ|КАРПЫЧЕВА",null,null,null,{"$f":"VLOOKUP(CN73,Лист1!$E$2:$F$20,2,FALSE)","v":"Mindrukov_DG@agat.local; Karpicheva_EA@agat.local"},{"$error":"#N/A"},9,25,"Обычная"]
["Разработать макет выставочного стенда ",null,null,null,null,null,null,null,null,null,null,null,null,null,null,null,null,null,null,null,null,null,null,null,null,null,null,null,null,null,null,null,{"$f":"AG4","v":"2019-02-01"},null,null,null,null,null,null,null,null,null,null,null,null,null,null,null,null,null,null,null,null,null,null,null,null,null,null,null,null,null,null,null,null,null,null,null,null,null,null,null,null,null,null,null,null,null,null,null,null,null,null,null,null,null,null,null,null,null,null,"МИНДРЮКОВ|КАРПЫЧЕВА",null,null,null,{"$f":"VLOOKUP(CN74,Лист1!$E$2:$F$20,2,FALSE)","v":"Mindrukov_DG@agat.local; Karpicheva_EA@agat.local"},{"$f":"INDEX(B74:CM74,1,MATCH(1,INDEX(1-ISBLANK(B74:CM74),1,0),0))","v":"2019-02-01"},9,25,"Обычная"]
["Подготовить  чертежи",null,null,null,null,null,null,null,null,null,null,null,null,null,null,null,null,null,null,null,null,null,null,null,null,null,null,null,null,null,null,null,null,null,null,null,null,null,null,null,null,null,null,null,null,null,{"$f":"AU4","v":"2019-02-15"},null,null,null,null,null,null,null,null,null,null,null,null,null,null,null,null,null,null,null,null,null,null,null,null,null,null,null,null,null,null,null,null,null,null,null,null,null,null,null,null,null,null,null,null,"МИНДРЮКОВ",null,null,null,{"$f":"VLOOKUP(CN75,Лист1!$E$2:$F$20,2,FALSE)","v":"Mindrukov_DG@agat.local"},"2019-02-15",9,25,"Обычная"]
["Поготовить графику",null,null,null,null,null,null,null,null,null,null,null,null,null,null,null,null,null,null,null,null,null,null,null,null,null,null,null,null,null,null,null,null,null,null,null,null,null,null,null,null,null,null,null,null,null,null,null,null,null,null,null,null,null,null,null,{"$f":"BE4","v":"2019-02-25"},null,null,null,null,null,null,null,null,null,null,null,null,null,null,null,null,null,null,null,null,null,null,null,null,null,null,null,null,null,null,null,null,null,null,"МИНДРЮКОВ",null,null,null,{"$f":"VLOOKUP(CN76,Лист1!$E$2:$F$20,2,FALSE)","v":"Mindrukov_DG@agat.local"},"2019-02-25",9,25,"Обычная"]
["ДОПОЛНИТЕЛЬНЫЕ ЗАДАЧИ"]

{"sheet":"Лист1","index":1,"n_rows":18,"n_cols":11,"rows_kept":18,"cut":false,"hidden":false,"merged":[]}
["месяцы","номер",null,null,null,null,null,null,"Виды важности","Напом-ние:\nчасов\n(Remind:\nhours)","Напом-ние:\nминут\n(Remind:\nminutes)"]
["Январь",1,null,null,"КОМАРОВ","Komarov_IA@agat.local",null,null,"Низкая",18,25]
["Февраль",2,null,null,"УКОЛОВА","Ukolova_OY@agat.local",null,null,"Обычная",18,25]
["Март",3,null,null,"КОМАРОВ|УКОЛОВА","Komarov_IA@agat.local; Ukolova_OY@agat.local",null,null,"Высокая",18,25]
["Апрель",4,null,null,"УКОЛОВА|ФЕДОТОВА|КОМАРОВ","Komarov_IA@agat.local; Ukolova_OY@agat.local; Fedotova_AS@agat.local"]
["Май",5,null,null,"КОМАРОВ|УКОЛОВА|ФЕДОТОВА","Komarov_IA@agat.local; Ukolova_OY@agat.local; Fedotova_AS@agat.local"]
["Июнь",6,null,null,"ПЛОТНИКОВ","Plotnikov_IA@agat.local"]
["Июль",7,null,null,"НИКИФОРОВ","Nikiforov_DA@agat.local"]
["Август",8,null,null,"КОВАЛЕВ","Kovalev_PV@agat.local"]
["Сентябрь",9,null,null,"ЮМАШЕВ","Yumashev_YY@agat.local"]
["Октябрь",10,null,null,"КОЗЛОВ","Kozlov_AN@agat.local"]
["Ноябрь",11,null,null,"НИКИФОРОВ|КОЗЛОВ|ЮМАШЕВ","Nikiforov_DA@agat.local; Kozlov_AN@agat.local; Yumashev_YY@agat.local"]
["Декабрь",12,null,null,"ФЕДОТОВА","Fedotova_AS@agat.local"]
[null,null,null,null,"МИНДРЮКОВ","Mindrukov_DG@agat.local"]
[null,null,null,null,"КАРПЫЧЕВА","Karpicheva_EA@agat.local"]
[null,null,null,null,"КАРПЫЧЕВА|ФЕДОТОВА","Karpicheva_EA@agat.local;Fedotova_AS@agat.local"]
[null,null,null,null,"УКОЛОВА|ФЕДОТОВА","Ukolova_OY@agat.local; Fedotova_AS@agat.local"]
[null,null,null,null,"МИНДРЮКОВ|КАРПЫЧЕВА","Mindrukov_DG@agat.local; Karpicheva_EA@agat.local"]